bitfinex/quotes_SOLUSD_20250728
["timestamp","ask_amount","ask_price","bid_price","bid_amount"]
[1753666680643,0.72,188.56,188.52,0.66]
[1753666680846,0.03,188.56,188.52,0.66]
[1753666681518,0.03,188.56,188.53,0.66]
[1753666681920,0.03,188.56,188.52,4.56116768]
[1753666682121,0.03,188.56,188.54,0.66]
[1753666682942,0.72,188.56,188.51,4.56116768]
[1753666683146,0.03,188.56,188.52,0.66]
[1753666683348,0.03,188.56,188.51,4.56116768]
[1753666683530,0.03,188.56,188.53,0.66]
[1753666684519,0.03,188.56,188.51,9.86590365]
[1753666684730,0.03,188.56,188.54,0.66]
[1753666685139,0.03,188.56,188.55,0.66]
[1753666685621,0.03,188.56,188.55,5.22116768]
[1753666686843,0.03,188.56,188.55,12.10072179]
[1753666687230,0.03,188.56,188.55,17.40435477]
[1753666687550,0.03,188.56,188.55,6.72486768]
[1753666688750,0.03,188.56,188.55,12.02850066]
[1753666691641,0.03,188.56,188.55,1.5037]
[1753666691845,0.03,188.56,188.54,4.56116768]
[1753666692257,0.03,188.56,188.53,4.56116768]
[1753666693139,0.72,188.56,188.53,4.56116768]
[1753666693646,0.69,188.55,188.52,4.56116768]
[1753666694751,0.69,188.54,188.51,4.56116768]
[1753666695945,6.02355327,188.56,188.51,5.22116768]
[1753666696252,6.02355327,188.56,188.52,4.56116768]
[1753666696762,5.33355327,188.56,188.52,4.56116768]
[1753666696962,0.69,188.55,188.52,4.56116768]
[1753666697442,5.33355327,188.56,188.52,4.56116768]
[1753666697647,0.69,188.54,188.52,4.56116768]
[1753666697856,0.69,188.54,188.51,4.56116768]
[1753666698353,0.69,188.53,188.51,4.56116768]
[1753666698566,38.17,188.53,188.46,1.5684]
[1753666698736,146.99,188.52,188.47,4.56116768]
[1753666699066,0.69,188.51,188.46,4.56116768]
[1753666699265,0.69,188.5,188.46,4.56116768]
[1753666699946,0.69,188.5,188.46,5.22116768]
[1753666700337,156.16579445,188.52,188.46,4.56116768]
[1753666700539,156.85579445,188.52,188.46,5.22116768]
[1753666700740,0.69,188.51,188.46,5.22116768]
[1753666700936,0.69,188.5,188.46,5.22116768]
[1753666701344,156.16579445,188.52,188.46,10.52723121]
[1753666701548,156.85579445,188.52,188.47,5.22116768]
[1753666701747,146.3,188.52,188.49,4.56116768]
[1753666701948,146.3,188.52,188.49,5.22116768]
[1753666702353,146.3,188.52,188.46,0.66]
[1753666702556,0.69,188.51,188.46,4.56116768]
[1753666702758,37.48,188.5,188.46,4.56116768]
[1753666703065,38.17,188.5,188.46,4.56116768]
[1753666704056,38.17,188.5,188.44,0.06]
[1753666704057,0.69,188.49,188.44,0.06]
[1753666704256,0.69,188.48,188.45,4.56116768]
[1753666704670,0.69,188.47,188.44,4.62116768]
[1753666704878,0.69,188.47,188.44,0.06]
[1753666705252,37.48,188.47,188.44,0.06]
[1753666705456,0.71,188.46,188.44,0.06]
[1753666706169,37.48,188.47,188.45,0.69]
[1753666706381,37.48,188.47,188.44,4.62116768]
[1753666706693,37.48,188.47,188.44,5.31116768]
[1753666707755,0.71,188.47,188.44,0.06]
[1753666708173,37.48,188.48,188.45,0.69]
[1753666708373,38.19,188.48,188.44,4.62116768]
[1753666709775,37.48,188.48,188.46,4.56116768]
[1753666710283,37.48,188.48,188.45,10.55753582]
[1753666710474,37.48,188.48,188.45,9.86753582]
[1753666710686,0.71,188.47,188.44,0.06]
[1753666710873,0.71,188.46,188.44,4.62116768]
[1753666712302,37.5,188.49,188.45,5.25116768]
[1753666712464,37.5,188.49,188.45,4.56116768]
[1753666712872,37.5,188.49,188.46,5.25116768]
[1753666713490,37.5,188.49,188.47,5.25116768]
[1753666714103,37.5,188.49,188.47,10.5569656]
[1753666714301,38.21,188.51,188.47,4.56116768]
[1753666714490,37.5,188.51,188.47,4.56116768]
[1753666714685,0.71,188.5,188.47,4.56116768]
[1753666714883,0.71,188.5,188.47,9.86702033]
[1753666715479,172.3,188.52,188.48,0.69]
[1753666715686,146.3,188.51,188.48,0.69]
[1753666716277,146.3,188.51,188.48,4.56116768]
[1753666716497,147.01,188.51,188.48,4.56116768]
[1753666717588,0.71,188.5,188.47,9.86702033]
[1753666717789,0.71,188.49,188.46,4.56116768]
[1753666717984,0.71,188.48,188.46,4.56116768]
[1753666718176,0.71,188.48,188.46,9.86721508]
[1753666718381,37.48,188.49,188.46,9.86721508]
[1753666718772,37.48,188.49,188.46,4.56116768]
[1753666718988,0.71,188.48,188.46,4.56116768]
[1753666719210,0.71,188.47,188.44,0.06]
[1753666719699,47.34649925,188.49,188.44,0.06]
[1753666719899,0.71,188.46,188.44,0.06]
[1753666720134,38.19,188.46,188.44,0.06]
[1753666720550,147.01,188.45,188.44,0.06]
[1753666720843,151.57116768,188.45,188.44,0.06]
[1753666721547,189.05116768,188.45,188.44,0.06]
[1753666722421,194.35761501,188.45,188.44,0.06]
[1753666722642,189.79644733,188.45,188.44,0.06]
[1753666722841,194.35761501,188.45,188.44,0.06]
[1753666723648,198.71368768,188.45,188.44,0.06]
[1753666726737,201.36329705,188.45,188.44,0.06]
[1753666728151,146.3,188.45,188.44,0.06]
[1753666728452,183.78,188.45,188.44,0.06]
[1753666729860,146.3,188.45,188.44,0.06]
[1753666730031,183.78,188.45,188.44,0.06]
[1753666730231,146.3,188.45,188.44,0.06]
[1753666730849,147.01,188.45,188.44,0.06]
[1753666731954,146.3,188.45,188.44,0.06]
[1753666732445,147.01,188.45,188.44,0.06]
[1753666733139,36.57761501,188.45,188.44,0.06]
[1753666733353,27.36229898,188.45,188.44,0.06]
[1753666733559,27.6321,188.44,188.43,0.06]
[1753666733864,76.73736768,188.44,188.43,0.06]
[1753666734735,82.04409661,188.44,188.43,0.06]
[1753666740769,35.86789661,188.44,188.43,0.06]
[1753666740972,73.34789661,188.44,188.43,0.06]
[1753666742457,68.04116768,188.44,188.43,0.06]
[1753666742653,73.34789661,188.44,188.43,0.06]
[1753666747473,2.60046875,188.47,188.43,0.77]
[1753666747673,5.30543754,188.49,188.46,4.56116768]
[1753666747862,37.48,188.48,188.47,0.71]
[1753666748671,37.48,188.48,188.45,4.56116768]
[1753666748858,37.48,188.48,188.47,0.71]
[1753666749179,63.48,188.49,188.47,0.71]
[1753666749558,0.03,188.48,188.45,0.71]
[1753666750869,0.74,188.48,188.43,5.33116768]
[1753666751060,37.48,188.47,188.43,0.77]
[1753666751255,37.48,188.47,188.43,5.33116768]
[1753666751463,38.19,188.47,188.43,0.77]
[1753666751973,5.27116768,188.46,188.43,0.06]
[1753666752177,37.48,188.45,188.43,0.06]
[1753666753775,37.48,188.45,188.44,0.71]
[1753666753951,37.48,188.46,188.44,0.71]
[1753666754569,37.48,188.46,188.43,4.62116768]
[1753666754877,37.48,188.46,188.43,5.33116768]
[1753666756380,0.71,188.45,188.43,0.06]
[1753666757683,42.78618562,188.46,188.43,0.06]
[1753666758178,42.78618562,188.46,188.43,0.77]
[1753666758673,43.49618562,188.46,188.43,0.06]
[1753666758993,151.57116768,188.45,188.43,0.06]
[1753666759155,47.34789661,188.44,188.43,0.06]
[1753666759354,48.05789661,188.44,188.43,0.06]
[1753666759782,74.05789661,188.44,188.43,0.06]
[1753666760365,64.84258058,188.44,188.43,1e-08]
[1753666760780,68.34650516,188.44,188.43,1e-08]
[1753666761280,64.84258058,188.44,188.43,1e-08]
[1753666761488,68.34769534,188.44,188.43,1e-08]
[1753666765493,68.34769534,188.44,188.34,4.56116768]
[1753666765494,26.0,188.37,188.3,0.68]
[1753666765662,26.0,188.37,188.2,38.26]
[1753666765663,53.75455165,188.34,188.24,0.68]
[1753666765868,4.56116768,188.25,188.24,0.68]
[1753666766068,42.04116768,188.25,188.24,0.68]
[1753666766285,42.04116768,188.25,188.2,0.68]
[1753666766485,4.56116768,188.21,188.17,0.68]
[1753666766687,4.56116768,188.18,188.17,0.68]
[1753666766882,37.48,188.18,188.17,0.68]
[1753666767077,26.0,188.24,188.17,10.55551109]
[1753666767391,26.0,188.27,188.23,4.56116768]
[1753666767576,0.66,188.35,188.26,4.56116768]
[1753666767890,37.48,188.36,188.32,4.56116768]
[1753666768192,37.48,188.36,188.33,0.68]
[1753666768486,37.48,188.36,188.34,4.56116768]
[1753666768676,5.22116768,188.35,188.3,4.56116768]
[1753666768885,64.16,188.34,188.29,5.24116768]
[1753666769191,63.5,188.34,188.31,4.56116768]
[1753666770094,63.5,188.34,188.31,5.24116768]
[1753666770591,63.5,188.34,188.32,0.06]
[1753666770796,26.0,188.34,188.32,0.06]
[1753666770970,2.7084184,188.38,188.33,10.5509838]
[1753666771172,37.54,188.37,188.34,0.68]
[1753666771372,37.54,188.37,188.35,0.68]
[1753666771373,63.54,188.37,188.35,0.68]
[1753666771566,2.77353626,188.47,188.36,0.68]
[1753666771769,37.54,188.44,188.36,0.68]
[1753666772069,0.66,188.44,188.36,0.68]
[1753666772297,37.54,188.43,188.36,0.68]
[1753666772473,66.2608001,188.43,188.38,4.56116768]
[1753666772807,40.9208001,188.43,188.38,4.56116768]
[1753666773100,66.9208001,188.43,188.39,4.56116768]
[1753666773275,37.54,188.43,188.4,4.56116768]
[1753666773464,37.54,188.43,188.4,5.24116768]
[1753666773669,37.54,188.43,188.41,5.24116768]
[1753666773980,37.54,188.43,188.42,5.24116768]
[1753666774179,4.35707053,188.45,188.42,5.24116768]
[1753666774487,41.89707053,188.45,188.42,5.24116768]
[1753666774785,26.0,188.42,188.34,4.56116768]
[1753666775004,26.0,188.42,188.33,0.68]
[1753666775005,4.56116768,188.4,188.33,5.98982849]
[1753666775178,9.86904415,188.4,188.34,4.56116768]
[1753666775369,9.86904415,188.4,188.35,4.56116768]
[1753666775869,9.86904415,188.4,188.35,5.24116768]
[1753666775870,10.52904415,188.4,188.35,5.24116768]
[1753666776199,10.52904415,188.4,188.35,0.68]
[1753666776504,5.22116768,188.4,188.35,5.24116768]
[1753666776691,4.56116768,188.4,188.35,5.24116768]
[1753666776890,4.56116768,188.4,188.35,8.12931052]
[1753666776891,12.75722387,188.4,188.35,8.12931052]
[1753666777262,7.44931052,188.39,188.33,5.30972214]
[1753666777475,37.56,188.38,188.34,7.44931052]
[1753666777667,37.56,188.38,188.35,0.68]
[1753666779392,26.66,188.42,188.36,8.12931052]
[1753666779702,37.56,188.41,188.37,7.44931052]
[1753666780069,26.0,188.39,188.38,0.68]
[1753666781292,26.0,188.39,188.37,7.44931052]
[1753666781608,2.73770904,188.45,188.38,8.12931052]
[1753666781771,37.54,188.44,188.41,7.44931052]
[1753666781975,0.03,188.45,188.43,7.44931052]
[1753666782275,0.03,188.45,188.41,7.44931052]
[1753666782485,5.33657576,188.45,188.41,7.44931052]
[1753666782890,5.99657576,188.45,188.41,7.44931052]
[1753666783095,12.78588628,188.45,188.39,7.44931052]
[1753666783327,26.66,188.44,188.39,7.44931052]
[1753666783529,26.66,188.44,188.4,7.44931052]
[1753666783829,64.2,188.44,188.4,7.44931052]
[1753666784697,69.50685388,188.44,188.4,7.44931052]
[1753666784899,26.0,188.44,188.42,7.44931052]
[1753666788250,26.0,188.44,188.4,0.68]
[1753666788409,26.0,188.44,188.42,7.44931052]
[1753666788733,26.0,188.44,188.41,7.44931052]
[1753666789816,37.57,188.45,188.43,7.44931052]
[1753666790006,37.57,188.45,188.44,7.44931052]
[1753666790203,0.03,188.45,188.44,7.44931052]
[1753666790424,0.03,188.45,188.44,8.12931052]
[1753666790823,0.03,188.45,188.44,13.43603945]
[1753666791134,0.03,188.45,188.44,8.12931052]
[1753666791327,0.03,188.45,188.44,13.43603945]
[1753666793515,0.03,188.45,188.44,7.44931052]
[1753666795019,0.03,188.45,188.44,8.12931052]
[1753666795738,0.71,188.45,188.37,1.6271]
[1753666795951,0.03,188.45,188.43,7.44931052]
[1753666797012,0.68,188.44,188.42,7.44931052]
[1753666798946,5.98685184,188.44,188.38,5.98838125]
[1753666799154,0.68,188.43,188.4,4.56759599]
[1753666799324,5.30685184,188.44,188.4,4.56759599]
[1753666799528,0.68,188.42,188.4,4.56759599]
[1753666800248,37.48,188.44,188.41,4.56759599]
[1753666800459,37.48,188.44,188.42,5.24759599]
[1753666800816,37.48,188.44,188.42,4.56759599]
[1753666801033,37.48,188.44,188.4,0.68]
[1753666801034,0.68,188.43,188.4,4.56759599]
[1753666802050,5.98705817,188.43,188.4,4.56759599]
[1753666802413,5.30705817,188.43,188.4,4.56759599]
[1753666802731,0.03,188.45,188.42,4.56759599]
[1753666802914,0.03,188.45,188.44,4.56759599]
[1753666803116,0.03,188.48,188.44,9.13519198]
[1753666803316,0.03,188.48,188.47,4.56759599]
[1753666805628,0.03,188.48,188.47,5.24759599]
[1753666805820,0.03,188.48,188.47,10.55348021]
[1753666806550,0.03,188.48,188.44,0.68]
[1753666806842,0.03,188.48,188.42,5.30703795]
[1753666807016,0.03,188.48,188.46,4.56759599]
[1753666807220,0.03,188.48,188.47,4.56759599]
[1753666807642,0.03,188.48,188.46,4.56759599]
[1753666807946,5.33560271,188.48,188.46,4.56759599]
[1753666808145,5.33560271,188.48,188.45,4.56759599]
[1753666808347,215.10759599,188.47,188.42,4.56759599]
[1753666808649,0.68,188.46,188.42,4.56759599]
[1753666808832,0.68,188.45,188.41,4.56759599]
[1753666809033,146.3,188.45,188.41,4.56759599]
[1753666809222,0.68,188.44,188.41,4.56759599]
[1753666809558,146.3,188.45,188.41,4.56759599]
[1753666809844,152.28656495,188.45,188.41,4.56759599]
[1753666810016,151.60656495,188.45,188.41,4.56759599]
[1753666810220,0.68,188.44,188.41,4.56759599]
[1753666810458,0.68,188.43,188.39,4.56759599]
[1753666810750,5.24759599,188.43,188.38,4.56759599]
[1753666810960,26.0,188.41,188.36,4.56759599]
[1753666811321,0.68,188.4,188.37,4.56759599]
[1753666811540,0.68,188.39,188.36,4.56759599]
[1753666811747,69.54781966,188.41,188.36,4.56759599]
[1753666812257,0.68,188.4,188.34,5.98935423]
[1753666812439,0.68,188.4,188.36,4.56759599]
[1753666812753,5.98802839,188.4,188.36,4.56759599]
[1753666812954,0.68,188.39,188.36,7.44781256]
[1753666815828,5.98829039,188.39,188.36,7.44781256]
[1753666816274,5.98829039,188.39,188.36,7.50781256]
[1753666818022,151.60792765,188.4,188.36,7.50781256]
[1753666818432,152.28792765,188.4,188.36,7.50781256]
[1753666819549,152.28792765,188.4,188.36,0.06]
[1753666819747,152.28792765,188.4,188.36,7.50781256]
[1753666820139,0.68,188.39,188.36,7.50781256]
[1753666820865,151.60792765,188.4,188.36,7.50781256]
[1753666821071,152.28792765,188.4,188.36,7.50781256]
[1753666821372,5.98821483,188.39,188.36,0.06]
[1753666821666,5.30821483,188.39,188.36,7.50781256]
[1753666821967,152.28793849,188.4,188.36,7.50781256]
[1753666822676,146.3,188.39,188.36,7.50781256]
[1753666823251,152.28815938,188.39,188.36,7.50781256]
[1753666824070,152.28815938,188.39,188.36,0.06]
[1753666824745,189.76815938,188.39,188.36,0.06]
[1753666825164,6.02869904,188.38,188.36,0.06]
[1753666825547,0.72,188.37,188.36,0.06]
[1753666826674,5.30869904,188.38,188.36,0.06]
[1753666826864,6.02869904,188.38,188.36,0.06]
[1753666827072,0.72,188.38,188.36,0.06]
[1753666828670,6.02847493,188.38,188.36,0.06]
[1753666832882,189.08821064,188.39,188.36,0.06]
[1753666833086,189.08821064,188.39,188.36,7.50781256]
[1753666833261,0.72,188.38,188.36,7.50781256]
[1753666834472,6.02842226,188.38,188.36,7.50781256]
[1753666834881,6.02842226,188.38,188.36,4.63057664]
[1753666835181,0.72,188.37,188.36,0.06]
[1753666835355,38.2,188.37,188.36,0.06]
[1753666836563,43.50870096,188.37,188.36,0.06]
[1753666837778,48.0792776,188.37,188.36,0.06]
[1753666838160,43.50870096,188.37,188.36,0.06]
[1753666838361,64.86396157,188.37,188.36,0.06]
[1753666838594,64.86396157,188.37,188.33,0.06]
[1753666838595,42.78468397,188.34,188.33,0.06]
[1753666838757,30.57057664,188.34,188.33,0.06]
[1753666838958,68.77057664,188.34,188.33,0.06]
[1753666840470,78.33240738,188.34,188.33,0.06]
[1753666841760,40.85240738,188.34,188.33,0.06]
[1753666841959,0.72,188.37,188.33,4.63057664]
[1753666842177,37.48,188.36,188.33,4.63057664]
[1753666842367,26.0,188.34,188.33,0.06]
[1753666842568,24.60742116,188.34,188.33,0.06]
[1753666842973,184.5,188.36,188.33,4.63057664]
[1753666843189,183.78,188.36,188.33,4.63057664]
[1753666843763,189.08905015,188.36,188.33,4.63057664]
[1753666844067,183.78,188.36,188.34,5.29057664]
[1753666844278,183.78,188.36,188.34,0.72]
[1753666844774,183.78,188.36,188.34,5.29057664]
[1753666845158,183.78,188.36,188.34,0.72]
[1753666846090,183.78,188.36,188.33,4.63057664]
[1753666846273,184.5,188.36,188.33,4.63057664]
[1753666846969,189.80902447,188.36,188.33,4.63057664]
[1753666847370,26.0,188.34,188.33,0.06]
[1753666847678,63.5,188.34,188.33,0.06]
[1753666847872,64.22,188.34,188.33,0.06]
[1753666848500,63.5,188.34,188.33,0.06]
[1753666850870,68.80954656,188.34,188.33,0.06]
[1753666851070,69.52954656,188.34,188.33,0.06]
[1753666854604,74.1001232,188.34,188.33,0.06]
[1753666856174,13.95229811,188.37,188.33,0.06]
[1753666856493,1.6464,188.4,188.33,5.31057664]
[1753666856494,37.48,188.36,188.33,5.31057664]
[1753666856696,37.48,188.36,188.33,4.63057664]
[1753666856996,37.48,188.36,188.34,0.68]
[1753666857378,37.48,188.36,188.33,4.63057664]
[1753666857677,26.0,188.34,188.33,0.06]
[1753666857874,63.48,188.34,188.33,0.06]
[1753666858078,64.16,188.34,188.33,0.06]
[1753666858278,68.73057664,188.34,188.33,0.06]
[1753666858477,85.51526061,188.34,188.33,0.06]
[1753666859476,90.82480717,188.34,188.33,0.06]
[1753666860304,31.98954656,188.34,188.33,0.06]
[1753666860512,74.0601232,188.34,188.33,0.06]
[1753666861885,31.98954656,188.34,188.33,0.06]
[1753666862081,31.30954656,188.34,188.33,0.06]
[1753666862287,63.5,188.34,188.33,0.74]
[1753666862506,31.30954656,188.34,188.33,0.06]
[1753666863077,53.34480717,188.34,188.33,0.06]
[1753666864602,56.83979119,188.34,188.33,0.06]
[1753666864783,53.34480717,188.34,188.33,0.06]
[1753666868313,31.98954656,188.34,188.33,0.06]
[1753666868508,63.5,188.34,188.33,0.74]
[1753666869006,73.3801232,188.34,188.33,0.06]
[1753666869308,74.0601232,188.34,188.33,0.06]
[1753666869892,73.3801232,188.34,188.33,0.06]
[1753666870805,68.80954656,188.34,188.33,0.06]
[1753666871003,26.0,188.34,188.33,0.74]
[1753666871306,68.80954656,188.34,188.33,0.06]
[1753666871484,63.5,188.34,188.33,0.74]
[1753666871886,68.80954656,188.34,188.33,0.74]
[1753666872103,74.0601232,188.34,188.33,0.06]
[1753666872696,64.84480717,188.34,188.33,0.06]
[1753666872898,68.34164014,188.34,188.33,0.06]
[1753666873110,64.16480717,188.34,188.33,0.06]
[1753666874191,64.84480717,188.34,188.33,0.06]
[1753666874714,68.34326138,188.34,188.32,0.06]
[1753666874894,0.68,188.33,188.32,0.06]
[1753666875094,5.25057664,188.33,188.32,0.06]
[1753666875898,42.78468397,188.3,188.29,0.06]
[1753666876114,90.14593506,188.3,188.29,0.06]
[1753666876291,90.82593506,188.3,188.29,0.06]
[1753666876788,93.59619565,188.3,188.29,0.06]
[1753666877406,100.98214593,188.3,188.28,0.06]
[1753666877606,21.35526061,188.29,188.28,0.06]
[1753666878120,29.30361466,188.29,188.28,0.06]
[1753666878414,37.5,188.3,188.28,0.74]
[1753666878618,63.5,188.3,188.28,0.74]
[1753666878915,31.31068547,188.3,188.29,0.68]
[1753666879295,31.31068547,188.3,188.28,0.06]
[1753666879496,31.31068547,188.3,188.28,0.74]
[1753666879899,31.31068547,188.3,188.28,0.06]
[1753666880100,31.31068547,188.3,188.29,0.68]
[1753666880802,31.31068547,188.3,188.28,0.06]
[1753666880996,146.3,188.29,188.28,0.06]
[1753666881615,183.8,188.29,188.28,0.06]
[1753666882308,194.36153314,188.29,188.28,0.06]
[1753666883117,193.68153314,188.29,188.28,0.06]
[1753666885406,194.40153314,188.29,188.28,0.06]
[1753666886902,64.88621711,188.29,188.28,0.06]
[1753666887799,64.88621711,188.29,188.25,0.06]
[1753666887800,42.78468397,188.26,188.25,0.06]
[1753666888111,84.85526061,188.26,188.25,0.06]
[1753666888318,90.88706343,188.26,188.25,0.06]
[1753666899026,93.66016528,188.26,188.25,0.06]
[1753666900918,97.15623917,188.26,188.25,1e-08]
[1753666901121,101.04066563,188.26,188.25,1e-08]
[1753666902120,101.03990462,188.26,188.25,1e-08]
[1753666902332,42.78468397,188.22,188.21,0.06]
[1753666902541,84.85526061,188.22,188.21,0.06]
[1753666903150,85.57526061,188.22,188.21,0.06]
[1753666903850,90.88819228,188.22,188.21,0.06]
[1753666905130,26.0,188.15,188.14,0.71]
[1753666905331,68.07057664,188.15,188.14,0.71]
[1753666906430,63.5,188.15,188.14,0.71]
[1753666906624,68.07057664,188.15,188.13,0.06]
[1753666906827,16.78468397,188.18,188.14,0.71]
[1753666907032,4.57057664,188.16,188.14,0.71]
[1753666907246,37.5,188.15,188.14,0.71]
[1753666907824,26.0,188.15,188.14,0.71]
[1753666908044,63.5,188.15,188.14,0.71]
[1753666910264,146.3,188.15,188.14,0.71]
[1753666910436,146.3,188.15,188.14,10.59576745]
[1753666910838,146.3,188.15,188.14,0.71]
[1753666911055,183.8,188.15,188.13,0.06]
[1753666911249,4.57057664,188.14,188.13,0.06]
[1753666912469,47.35526061,188.14,188.13,0.06]
[1753666913140,52.67045142,188.14,188.13,0.06]
[1753666914482,63.52,188.14,188.13,0.77]
[1753666916136,26.0,188.14,188.13,0.77]
[1753666916463,63.52,188.15,188.13,0.77]
[1753666916663,26.0,188.14,188.13,0.77]
[1753666918641,63.52,188.17,188.13,5.34057664]
[1753666918858,63.52,188.17,188.14,5.25057664]
[1753666919163,26.0,188.15,188.14,4.57057664]
[1753666919539,37.52,188.18,188.14,4.57057664]
[1753666919877,26.0,188.16,188.15,0.68]
[1753666920240,2.77385357,188.21,188.16,0.68]
[1753666920437,22.09705116,188.24,188.2,4.57057664]
[1753666920644,26.0,188.2,188.18,4.57057664]
[1753666920841,68.79057664,188.2,188.15,5.25057664]
[1753666921267,64.22,188.2,188.16,5.25057664]
[1753666921470,64.22,188.2,188.16,4.57057664]
[1753666921843,43.53377241,188.2,188.16,4.57057664]
[1753666922540,0.7,188.19,188.15,4.57057664]
[1753666922762,0.7,188.19,188.15,5.25057664]
[1753666922939,45.53826258,188.2,188.16,4.57057664]
[1753666923148,45.53826258,188.2,188.16,5.25057664]
[1753666923342,146.3,188.21,188.17,5.25057664]
[1753666923553,146.3,188.21,188.2,4.57057664]
[1753666923760,146.3,188.25,188.21,5.31321396]
[1753666923955,146.3,188.25,188.24,4.57057664]
[1753666924275,146.3,188.25,188.24,5.25057664]
[1753666924971,0.03,188.28,188.24,5.25057664]
[1753666925150,0.03,188.28,188.27,4.57057664]
[1753666925351,26.03,188.28,188.27,4.57057664]
[1753666925577,26.03,188.28,188.27,5.25057664]
[1753666926290,0.03,188.28,188.27,16.68217396]
[1753666926872,0.03,188.28,188.27,12.11159732]
[1753666927551,0.03,188.28,188.27,6.80007664]
[1753666929876,0.03,188.28,188.27,6.12007664]
[1753666930379,0.03,188.28,188.25,0.68]
[1753666930576,0.03,188.28,188.26,4.57057664]
[1753666931082,0.03,188.28,188.27,4.57057664]
[1753666931951,146.3,188.27,188.22,7.7991]
[1753666932161,146.3,188.27,188.24,4.57057664]
[1753666932678,146.3,188.27,188.25,4.57057664]
[1753666933062,0.7,188.26,188.23,4.57057664]
[1753666933889,6.01189901,188.26,188.23,4.57057664]
[1753666934268,43.51189901,188.26,188.23,4.57057664]
[1753666936200,37.5,188.26,188.23,4.57057664]
[1753666936386,37.5,188.26,188.24,4.57057664]
[1753666937895,0.03,188.28,188.25,5.25057664]
[1753666938096,0.03,188.28,188.27,4.57057664]
[1753666938589,0.03,188.28,188.27,5.25057664]
[1753666939795,0.03,188.28,188.27,10.56209732]
[1753666940000,0.73,188.28,188.24,4.57057664]
[1753666940305,26.0,188.27,188.23,4.57057664]
[1753666940594,0.7,188.26,188.23,4.57057664]
[1753666940784,26.0,188.27,188.24,4.57057664]
[1753666940977,26.7,188.27,188.24,4.57057664]
[1753666941695,0.7,188.26,188.23,4.57057664]
[1753666942596,26.0,188.27,188.23,4.57057664]
[1753666942802,26.7,188.27,188.23,7.4580959]
[1753666943302,26.7,188.27,188.22,7.4580959]
[1753666943303,0.7,188.26,188.22,7.4580959]
[1753666943504,7.4580959,188.26,188.21,7.4580959]
[1753666943799,0.7,188.25,188.21,7.4580959]
[1753666944014,0.7,188.24,188.21,7.4580959]
[1753666944174,12.77018503,188.25,188.19,7.4580959]
[1753666944374,0.7,188.23,188.19,7.4580959]
[1753666944786,0.7,188.23,188.18,1.5817]
[1753666944976,0.7,188.23,188.19,7.4580959]
[1753666946701,6.01269259,188.23,188.19,7.4580959]
[1753666947011,8.1580959,188.22,188.17,7.4580959]
[1753666947191,0.7,188.21,188.17,7.4580959]
[1753666947504,26.0,188.2,188.17,8.1480959]
[1753666950510,26.0,188.2,188.17,13.4624393]
[1753666951101,26.0,188.2,188.18,7.4580959]
[1753666951690,26.0,188.22,188.19,8.1480959]
[1753666951995,26.0,188.22,188.2,8.1480959]
[1753666952319,26.0,188.22,188.21,7.4580959]
[1753666952486,26.0,188.22,188.21,8.1480959]
[1753666953005,146.3,188.24,188.21,13.46130986]
[1753666953215,146.3,188.24,188.23,7.4580959]
[1753666953402,146.3,188.24,188.23,8.1480959]
[1753666953793,146.3,188.24,188.23,7.4580959]
[1753666953994,146.3,188.24,188.22,7.4580959]